fUSD/lending_fUSD_20240718
["ID","MTS","AMOUNT","RATE_DAILY","PERIOD"]
[332538646,1721289088412,-500.0,0.00023835,2]
[332538647,1721289088421,-500.0,0.00023835,2]
[332538648,1721289088431,-551.27,0.00023835,2]
[332538649,1721289088440,-501.24,0.00023835,2]
[332538650,1721289088450,-500.0,0.00023835,2]
[332538651,1721289088459,-500.0,0.00023835,2]
[332538652,1721289088468,-680.83,0.00023835,2]
[332538653,1721289088478,-500.0,0.00023835,2]
[332538654,1721289088487,-500.0,0.00023835,2]
[332538655,1721289088497,-500.0,0.00023835,2]
[332538656,1721289088507,-500.0,0.00023835,2]
[332538657,1721289088517,-500.0,0.00023835,2]
[332538658,1721289088527,-899.14,0.00023835,2]
[332538659,1721289088536,-500.0,0.00023835,2]
[332538660,1721289088546,-1218.38,0.00023835,2]
[332538661,1721289088556,-500.0,0.00023835,2]
[332538662,1721289088566,-500.0,0.00023835,2]
[332538663,1721289088575,-1331.38,0.00023835,2]
[332538664,1721289088585,-500.0,0.00023835,2]
[332538665,1721289088595,-729.11,0.00023835,2]
[332538666,1721289088604,-500.0,0.00023835,2]
[332538667,1721289088614,-500.0,0.00023835,2]
[332538668,1721289088624,-500.0,0.00023835,2]
[332538669,1721289088634,-500.0,0.00023835,2]
[332538670,1721289088645,-500.0,0.00023835,2]
[332538671,1721289088655,-500.0,0.00023835,2]
[332538672,1721289088665,-500.0,0.00023835,2]
[332538673,1721289088675,-1110.47,0.00023835,2]
[332538674,1721289088684,-500.0,0.00023835,2]
[332538675,1721289088694,-500.0,0.00023835,2]
[332538676,1721289088704,-928.86,0.00023835,2]
[332538677,1721289088714,-500.0,0.00023835,2]
[332538678,1721289088724,-407.1,0.00023835,2]
[332538679,1721289088733,-2979.69,0.00023835,2]
[332538680,1721289088743,-1387.05,0.00023835,2]
[332538681,1721289088753,-873.23,0.00023835,2]
[332538682,1721289088762,-500.0,0.00023835,2]
[332538683,1721289088772,-1458.28,0.00023835,2]
[332538684,1721289088781,-3460.08,0.00023835,2]
[332538685,1721289088791,-500.0,0.00023835,2]
[332538686,1721289088801,-2193.88,0.00023835,2]
[332538687,1721289088812,-500.0,0.00023835,2]
[332538688,1721289088823,-500.0,0.00023835,2]
[332538689,1721289088834,-500.0,0.00023835,2]
[332538690,1721289088844,-500.0,0.00023835,2]
[332538691,1721289088854,-500.0,0.00023835,2]
[332538692,1721289088864,-4972.84,0.00023835,2]
[332538693,1721289088874,-1560.72,0.00023835,15]
[332538694,1721289088884,-698.63,0.00023835,2]
[332538695,1721289088895,-612.57,0.00023835,2]
[332538696,1721289088906,-500.0,0.00023835,2]
[332538697,1721289088916,-605.59,0.00023835,2]
[332538698,1721289088926,-500.0,0.00023835,2]
[332538699,1721289088936,-934.59,0.00023835,2]
[332538700,1721289088945,-528.39416331,0.00023835,2]
[332538701,1721289088956,-500.0,0.00023835,2]
[332538702,1721289088972,-500.0,0.00023835,2]
[332538703,1721289088986,-500.0,0.00023835,2]
[332538704,1721289088995,-792.53,0.00023835,2]
[332538705,1721289089008,-500.0,0.00023835,2]
[332538706,1721289089018,-500.0,0.00023835,2]
[332538707,1721289089028,-698.88,0.00023835,2]
[332538708,1721289089038,-441.98958414,0.00023835,2]
[332538709,1721289089048,-500.0,0.00023835,2]
[332538710,1721289089058,-500.0,0.00023835,2]
[332538711,1721289089069,-500.0,0.00023835,2]
[332538712,1721289089080,-978.79,0.00023835,2]
[332538713,1721289089090,-500.0,0.00023835,2]
[332538714,1721289089100,-506.64,0.00023835,2]
[332538715,1721289089110,-500.0,0.00023835,2]
[332538716,1721289089121,-500.0,0.00023835,2]
[332538717,1721289089132,-860.45,0.00023835,2]
[332538718,1721289089142,-500.0,0.00023835,2]
[332538719,1721289089152,-552.61,0.00023835,2]
[332538720,1721289089162,-186.46,0.00023835,2]
[332538721,1721289089172,-1026.96,0.00023835,2]
[332538722,1721289089181,-500.0,0.00023835,2]
[332538723,1721289089192,-726.27,0.00023835,2]
[332538724,1721289089201,-500.0,0.00023835,2]
[332538725,1721289089211,-3542.28,0.00023835,2]
[332538726,1721289089221,-552.15,0.00023835,2]
[332538727,1721289089230,-733.17,0.00023835,2]
[332538728,1721289089240,-816.94,0.00023835,2]
[332538729,1721289089250,-500.0,0.00023835,2]
[332538730,1721289089260,-816.74,0.00023835,2]
[332538731,1721289089271,-1626.45,0.00023835,2]
[332538732,1721289089281,-500.0,0.00023835,2]
[332538733,1721289089292,-500.0,0.00023835,2]
[332538734,1721289089302,-576.21,0.00023835,2]
[332538735,1721289089311,-631.79,0.00023835,2]
[332538736,1721289089322,-836.01,0.00023835,2]
[332538737,1721289089334,-500.0,0.00023835,2]
[332538738,1721289089344,-500.0,0.00023835,2]
[332538739,1721289089354,-672.02,0.00023835,2]
[332538740,1721289089363,-519.28,0.00023835,2]
[332538741,1721289089373,-1562.81,0.00023835,2]
[332538742,1721289089383,-500.0,0.00023835,2]
[332538743,1721289089392,-621.32,0.00023835,2]
[332538744,1721289089402,-500.0,0.00023835,2]
[332538745,1721289089412,-986.48,0.00023835,2]
[332538746,1721289089422,-589.39,0.00023835,2]
[332538747,1721289089431,-500.68722013,0.00023835,2]
[332538748,1721289089441,-500.0,0.00023835,2]
[332538749,1721289089450,-614.4207746,0.00023916,2]
[332538750,1721289089460,-155.45399586,0.00023918,2]
[332538751,1721289089470,-614.4207746,0.00023922,2]
[332538752,1721289089481,-155.0,0.0002398,2]
[332538753,1721289089491,-155.0,0.0002398,2]
[332538754,1721289089503,-400.0,0.00023981,2]
[332538755,1721289089515,-40000.0,0.00024,5]
[332538756,1721289089527,-368.06037406,0.00024109,2]
[332538757,1721289089536,-733.2,0.00024109,2]
[332538758,1721289089546,-500.0,0.00024109,2]
[332538759,1721289089555,-500.0,0.00024109,2]
[332538760,1721289089564,-500.0,0.00024109,2]
[332538761,1721289089574,-500.0,0.00024109,2]
[332538762,1721289089583,-507.98789141,0.00024109,2]
[332538763,1721289089592,-500.0,0.00024109,2]
[332538764,1721289089601,-532.26,0.00024109,2]
[332538765,1721289089611,-500.0,0.00024109,2]
[332538766,1721289089620,-500.0,0.00024109,2]
[332538767,1721289089630,-513.28,0.00024109,2]
[332538768,1721289089639,-500.0,0.00024109,2]
[332538769,1721289089649,-500.0,0.00024109,2]
[332538770,1721289089658,-500.0,0.00024109,2]
[332538771,1721289089668,-500.0,0.00024109,2]
[332538772,1721289089677,-507.79390762,0.00024109,2]
[332538773,1721289089687,-500.0,0.00024109,2]
[332538774,1721289089696,-500.0,0.00024109,2]
[332538775,1721289089705,-500.0,0.00024109,2]
[332538776,1721289089715,-500.0,0.00024109,2]
[332538777,1721289089725,-677.24,0.00024109,2]
[332538778,1721289089734,-1022.24,0.00024109,2]
[332538779,1721289089743,-650.1,0.00024109,2]
[332538780,1721289089752,-500.0,0.00024109,2]
[332538781,1721289089762,-500.0,0.00024109,2]
[332538782,1721289089772,-500.0,0.00024109,2]
[332538783,1721289089781,-545.06,0.00024109,2]
[332538784,1721289089790,-641.77,0.00024109,2]
[332538785,1721289089800,-500.0,0.00024109,2]
[332538786,1721289089810,-500.0,0.00024109,2]
[332538787,1721289089819,-500.0,0.00024109,2]
[332538788,1721289089829,-840.54,0.00024109,2]
[332538789,1721289089839,-500.0,0.00024109,2]
[332538790,1721289089849,-645.82,0.00024109,2]
[332538791,1721289089859,-500.0,0.00024109,2]
[332538792,1721289089868,-500.0,0.00024109,2]
[332538793,1721289089878,-500.0,0.00024109,2]
[332538794,1721289089887,-790.23,0.00024109,2]
[332538795,1721289089897,-500.0,0.00024109,2]
[332538796,1721289089907,-500.0,0.00024109,2]
[332538797,1721289089917,-500.0,0.00024109,2]
[332538798,1721289089926,-500.0,0.00024109,2]
[332538799,1721289089936,-500.0,0.00024109,2]
[332538800,1721289089946,-251.75656661,0.00024109,2]
[332538801,1721289089957,-504.70438407,0.00024109,2]
[332538802,1721289089972,-1093.27,0.00024109,2]
[332538803,1721289089982,-500.0,0.00024109,2]
[332538804,1721289089991,-500.0,0.00024109,2]
[332538805,1721289090000,-500.0,0.00024109,2]
[332538806,1721289090010,-500.0,0.00024109,2]
[332538807,1721289090020,-701.25,0.00024109,2]
[332538808,1721289090030,-1052.53,0.00024109,2]
[332538809,1721289090040,-1419.28,0.00024109,2]
[332538810,1721289090050,-319.00265293,0.00024109,2]
[332538811,1721289090059,-1149.05,0.00024109,2]
[332538812,1721289090069,-1999.69,0.00024109,2]
[332538813,1721289090078,-540.75,0.00024109,2]
[332538814,1721289090088,-500.0,0.00024109,2]
[332538815,1721289090098,-1246.32,0.00024109,2]
[332538816,1721289090107,-500.0,0.00024109,2]
[332538817,1721289090118,-500.0,0.00024109,2]
[332538818,1721289090128,-730.94,0.00024109,2]
[332538819,1721289090139,-500.0,0.00024109,2]
[332538820,1721289090149,-788.04,0.00024109,2]
[332538821,1721289090160,-500.0,0.00024109,2]
[332538822,1721289090171,-1379.71,0.00024109,2]
[332538823,1721289090182,-500.0,0.00024109,2]
[332538824,1721289090192,-500.0,0.00024109,2]
[332538825,1721289090203,-591.47,0.00024109,2]
[332538826,1721289090213,-504.9496274,0.00024109,2]
[332538827,1721289090224,-1577.45,0.00024109,2]
[332538828,1721289090234,-976.97,0.00024109,2]
[332538829,1721289090245,-545.65823113,0.00024109,2]
[332538830,1721289090255,-500.0,0.00024109,2]
[332538831,1721289090265,-551.27,0.00024109,2]
[332538832,1721289090276,-500.0,0.00024109,2]
[332538833,1721289090286,-503.86264522,0.00024109,2]
[332538834,1721289090297,-680.83,0.00024109,2]
[332538835,1721289090308,-500.0,0.00024109,2]
[332538836,1721289090318,-500.0,0.00024109,2]
[332538837,1721289090328,-500.0,0.00024109,2]
[332538838,1721289090339,-500.0,0.00024109,2]
[332538839,1721289090353,-500.0,0.00024109,2]
[332538840,1721289090364,-899.14,0.00024109,2]
[332538841,1721289090375,-500.0,0.00024109,2]
[332538842,1721289090386,-1218.38,0.00024109,2]
[332538843,1721289090396,-500.0,0.00024109,2]
[332538844,1721289090407,-500.0,0.00024109,2]
[332538845,1721289090417,-1331.38,0.00024109,2]
[332538846,1721289090427,-500.0,0.00024109,2]
[332538847,1721289090439,-729.11,0.00024109,2]
[332538848,1721289090449,-500.0,0.00024109,2]
[332538849,1721289090461,-243.12225142,0.00024109,2]
[332538850,1721289090471,-500.0,0.00024109,2]
[332538851,1721289090480,-500.0,0.00024109,2]
[332538852,1721289090490,-500.0,0.00024109,2]
[332538853,1721289090500,-500.0,0.00024109,2]
[332538854,1721289090509,-225.57417383,0.00024109,2]
[332538855,1721289090518,-1110.47,0.00024109,2]
[332538856,1721289090528,-500.0,0.00024109,2]
[332538857,1721289090804,-500.0,0.00024109,2]
[332538858,1721289090815,-928.86,0.00024109,2]
[332538859,1721289090825,-500.0,0.00024109,2]
[332538860,1721289090835,-2979.69,0.00024109,2]
[332538861,1721289090844,-1387.05,0.00024109,2]
[332538862,1721289090853,-873.23,0.00024109,2]
[332538863,1721289090864,-500.0,0.00024109,2]
[332538864,1721289090873,-1458.28,0.00024109,2]
[332538865,1721289090883,-3460.08,0.00024109,2]
[332538866,1721289090893,-500.0,0.00024109,2]
[332538867,1721289090902,-2193.88,0.00024109,2]
[332538868,1721289090912,-500.0,0.00024109,2]
[332538869,1721289090922,-500.0,0.00024109,2]
[332538870,1721289090932,-500.0,0.00024109,2]
[332538871,1721289090942,-500.0,0.00024109,2]
[332538872,1721289090952,-500.0,0.00024109,2]
[332538873,1721289090966,-4972.84,0.00024109,2]
[332538874,1721289090976,-1560.72,0.00024109,15]
[332538875,1721289090985,-698.63,0.00024109,2]
[332538876,1721289090995,-612.57,0.00024109,2]
[332538877,1721289091006,-500.0,0.00024109,2]
[332538878,1721289091016,-605.59,0.00024109,2]
[332538879,1721289091026,-934.59,0.00024109,2]
[332538880,1721289091036,-500.0,0.00024109,2]
[332538881,1721289091046,-500.0,0.00024109,2]
[332538882,1721289091056,-500.0,0.00024109,2]
[332538883,1721289091065,-792.53,0.00024109,2]
[332538884,1721289091074,-500.0,0.00024109,2]
[332538885,1721289091083,-500.0,0.00024109,2]
[332538886,1721289091093,-698.88,0.00024109,2]
[332538887,1721289091103,-500.0,0.00024109,2]
[332538888,1721289091113,-500.0,0.00024109,2]
[332538889,1721289091122,-500.0,0.00024109,2]
[332538890,1721289091133,-978.79,0.00024109,2]
[332538891,1721289091143,-500.0,0.00024109,2]
[332538892,1721289091153,-506.64,0.00024109,2]
[332538893,1721289091163,-248.4920363,0.00024109,2]
[332538894,1721289091172,-500.0,0.00024109,2]
[332538895,1721289091182,-860.45,0.00024109,2]
[332538896,1721289091192,-500.0,0.00024109,2]
[332538897,1721289091201,-552.61,0.00024109,2]
[332538898,1721289091211,-1026.96,0.00024109,2]
[332538899,1721289091221,-500.0,0.00024109,2]
[332538900,1721289091231,-726.27,0.00024109,2]
[332538901,1721289091240,-500.0,0.00024109,2]
[332538902,1721289091249,-3542.28,0.00024109,2]
[332538903,1721289091259,-552.15,0.00024109,2]
[332538904,1721289091268,-733.17,0.00024109,2]
[332538905,1721289091278,-816.94,0.00024109,2]
[332538906,1721289091287,-500.0,0.00024109,2]
[332538907,1721289091297,-816.74,0.00024109,2]
[332538908,1721289091307,-1626.45,0.00024109,2]
[332538909,1721289091316,-500.0,0.00024109,2]
[332538910,1721289091326,-500.0,0.00024109,2]
[332538911,1721289091336,-576.21,0.00024109,2]
[332538912,1721289091346,-631.79,0.00024109,2]
[332538913,1721289091356,-836.01,0.00024109,2]
[332538914,1721289091365,-500.0,0.00024109,2]
[332538915,1721289091375,-500.0,0.00024109,2]
[332538916,1721289091384,-672.02,0.00024109,2]
[332538917,1721289091393,-519.28,0.00024109,2]
[332538918,1721289091403,-1562.81,0.00024109,2]
[332538919,1721289091413,-500.0,0.00024109,2]
[332538920,1721289091422,-621.32,0.00024109,2]
[332538921,1721289091431,-500.0,0.00024109,2]
[332538922,1721289091441,-986.48,0.00024109,2]
[332538923,1721289091450,-589.39,0.00024109,2]
[332538924,1721289091460,-500.0,0.00024109,2]
[332538925,1721289091469,-2000.0,0.000242,2]
[332538926,1721289091479,-614.4207746,0.00024226,2]
[332538927,1721289091489,-404087.83762012,0.00024383,7]
[332538928,1721289091498,-2139.69024748,0.00024383,2]
[332538929,1721289091507,-733.2,0.00024383,2]
[332538930,1721289091517,-500.0,0.00024383,2]
[332538931,1721289091526,-500.0,0.00024383,2]
[332538932,1721289091535,-500.0,0.00024383,2]
[332538933,1721289091545,-500.0,0.00024383,2]
[332538934,1721289091554,-532.26,0.00024383,2]
[332538935,1721289091563,-500.0,0.00024383,2]
[332538936,1721289091572,-500.0,0.00024383,2]
[332538937,1721289091581,-513.28,0.00024383,2]
[332538938,1721289091591,-500.0,0.00024383,2]
[332538939,1721289091602,-500.0,0.00024383,2]
[332538940,1721289091612,-500.0,0.00024383,2]
[332538941,1721289091621,-500.0,0.00024383,2]
[332538942,1721289091631,-500.0,0.00024383,2]
[332538943,1721289091641,-500.0,0.00024383,2]
[332538944,1721289091650,-500.0,0.00024383,2]
[332538945,1721289091660,-677.24,0.00024383,2]
[332538946,1721289091669,-1022.24,0.00024383,2]
[332538947,1721289091679,-650.1,0.00024383,2]
[332538948,1721289091688,-500.0,0.00024383,2]
[332538949,1721289091698,-500.0,0.00024383,2]
[332538950,1721289091707,-500.0,0.00024383,2]
[332538951,1721289091718,-545.06,0.00024383,2]
[332538952,1721289091727,-641.77,0.00024383,2]
[332538953,1721289091738,-500.0,0.00024383,2]
[332538954,1721289091747,-500.0,0.00024383,2]
[332538955,1721289091757,-500.0,0.00024383,2]
[332538956,1721289091767,-840.54,0.00024383,2]
[332538957,1721289091776,-500.0,0.00024383,2]
[332538958,1721289091787,-645.82,0.00024383,2]
[332538959,1721289091797,-500.0,0.00024383,2]
[332538960,1721289091806,-500.0,0.00024383,2]
[332538961,1721289091816,-500.0,0.00024383,2]
[332538962,1721289091826,-790.23,0.00024383,2]
[332538963,1721289091835,-496.44663511,0.00024383,2]
[332538964,1721289091844,-553.33093943,0.00024383,2]
[332538965,1721289091854,-500.0,0.00024383,2]
[332538966,1721289091863,-500.0,0.00024383,2]
[332538967,1721289091873,-500.0,0.00024383,2]
[332538968,1721289091882,-1093.27,0.00024383,2]
[332538969,1721289091892,-500.0,0.00024383,2]
[332538970,1721289091901,-500.0,0.00024383,2]
[332538971,1721289091911,-500.0,0.00024383,2]
[332538972,1721289091920,-502.57971208,0.00024383,2]
[332538973,1721289091930,-701.25,0.00024383,2]
[332538974,1721289091939,-1052.53,0.00024383,2]
[332538975,1721289091949,-1419.28,0.00024383,2]
[332538976,1721289091960,-1149.05,0.00024383,2]
[332538977,1721289091973,-1999.69,0.00024383,2]
[332538978,1721289091983,-540.75,0.00024383,2]
[332538979,1721289091993,-494.67,0.00024383,2]
[332538980,1721289092002,-1246.32,0.00024383,2]
[332538981,1721289092014,-500.0,0.00024383,2]
[332538982,1721289092024,-500.0,0.00024383,2]
[332538983,1721289092033,-500.0,0.00024383,2]
[332538984,1721289092044,-730.94,0.00024383,2]
[332538985,1721289092053,-788.04,0.00024383,2]
[332538986,1721289092063,-500.0,0.00024383,2]
[332538987,1721289092072,-1379.71,0.00024383,2]
[332538988,1721289092082,-500.0,0.00024383,2]
[332538989,1721289092091,-500.0,0.00024383,2]
[332538990,1721289092101,-591.47,0.00024383,2]
[332538991,1721289092111,-1577.45,0.00024383,2]
[332538992,1721289092121,-976.97,0.00024383,2]
[332538993,1721289092130,-500.0,0.00024383,2]
[332538994,1721289092140,-551.27,0.00024383,2]
[332538995,1721289092149,-500.0,0.00024383,2]
[332538996,1721289092159,-680.83,0.00024383,2]
[332538997,1721289092168,-500.0,0.00024383,2]
[332538998,1721289092178,-500.0,0.00024383,2]
[332538999,1721289092187,-500.0,0.00024383,2]
[332539000,1721289092197,-500.0,0.00024383,2]
[332539001,1721289092206,-500.0,0.00024383,2]
[332539002,1721289092215,-899.14,0.00024383,2]
[332539003,1721289092225,-506.67789679,0.00024383,2]
[332539004,1721289092234,-1218.38,0.00024383,2]
[332539005,1721289092244,-500.0,0.00024383,2]
[332539006,1721289092253,-500.0,0.00024383,2]
[332539007,1721289092263,-1331.38,0.00024383,2]
[332539008,1721289092273,-274.74522579,0.00024383,2]
[332539009,1721289092282,-729.11,0.00024383,2]
[332539010,1721289092292,-500.0,0.00024383,2]
[332539011,1721289092302,-500.0,0.00024383,2]
[332539012,1721289092311,-500.0,0.00024383,2]
[332539013,1721289092320,-500.0,0.00024383,2]
[332539014,1721289092330,-500.0,0.00024383,2]
[332539015,1721289092339,-1110.47,0.00024383,2]
[332539016,1721289092349,-500.0,0.00024383,2]
[332539017,1721289092359,-928.86,0.00024383,2]
[332539018,1721289092368,-500.0,0.00024383,2]
[332539019,1721289092378,-500.0,0.00024383,2]
[332539020,1721289092387,-2979.69,0.00024383,2]
[332539021,1721289092397,-1387.05,0.00024383,2]
[332539022,1721289092406,-873.23,0.00024383,2]
[332539023,1721289092415,-500.0,0.00024383,2]
[332539024,1721289092424,-1458.28,0.00024383,2]
[332539025,1721289092434,-3460.08,0.00024383,2]
[332539026,1721289092443,-500.0,0.00024383,2]
[332539027,1721289092453,-2193.88,0.00024383,2]
[332539028,1721289092462,-500.0,0.00024383,2]
[332539029,1721289092471,-500.0,0.00024383,2]
[332539030,1721289092481,-500.0,0.00024383,2]
[332539031,1721289092491,-500.0,0.00024383,2]
[332539032,1721289092500,-500.0,0.00024383,2]
[332539033,1721289092510,-4972.84,0.00024383,2]
[332539034,1721289092519,-1560.72,0.00024383,15]
[332539035,1721289092529,-698.63,0.00024383,2]
[332539036,1721289092539,-612.57,0.00024383,2]
[332539037,1721289092549,-500.0,0.00024383,2]
[332539038,1721289092558,-605.59,0.00024383,2]
[332539039,1721289092567,-934.59,0.00024383,2]
[332539040,1721289092576,-500.0,0.00024383,2]
[332539041,1721289092585,-500.0,0.00024383,2]
[332539042,1721289092594,-500.0,0.00024383,2]
[332539043,1721289092604,-792.53,0.00024383,2]
[332539044,1721289092613,-500.0,0.00024383,2]
[332539045,1721289092622,-632.47254438,0.00024383,2]
[332539046,1721289092631,-698.88,0.00024383,2]
[332539047,1721289092641,-500.0,0.00024383,2]
[332539048,1721289092650,-500.0,0.00024383,2]
[332539049,1721289092659,-500.0,0.00024383,2]
[332539050,1721289092669,-978.79,0.00024383,2]
[332539051,1721289092678,-500.0,0.00024383,2]
[332539052,1721289092688,-506.64,0.00024383,2]
[332539053,1721289092697,-500.0,0.00024383,2]
[332539054,1721289092706,-860.45,0.00024383,2]
[332539055,1721289092715,-500.0,0.00024383,2]
[332539056,1721289092724,-552.61,0.00024383,2]
[332539057,1721289092733,-1026.96,0.00024383,2]
[332539058,1721289092743,-500.0,0.00024383,2]
[332539059,1721289092752,-726.27,0.00024383,2]
[332539060,1721289092761,-500.0,0.00024383,2]
[332539061,1721289092770,-3542.28,0.00024383,2]
[332539062,1721289092779,-552.15,0.00024383,2]
[332539063,1721289092788,-733.17,0.00024383,2]
[332539064,1721289092797,-816.94,0.00024383,2]
[332539065,1721289092807,-500.0,0.00024383,2]
[332539066,1721289092816,-816.74,0.00024383,2]
[332539067,1721289092826,-1626.45,0.00024383,2]
[332539068,1721289092835,-500.0,0.00024383,2]
[332539069,1721289092844,-500.0,0.00024383,2]
[332539070,1721289092854,-576.21,0.00024383,2]
[332539071,1721289092863,-631.79,0.00024383,2]
[332539072,1721289092873,-836.01,0.00024383,2]
[332539073,1721289092882,-360.64999998,0.00024383,2]
[332539074,1721289092891,-500.0,0.00024383,2]
[332539075,1721289092901,-672.02,0.00024383,2]
[332539076,1721289092910,-519.28,0.00024383,2]
[332539077,1721289092919,-1562.81,0.00024383,2]
[332539078,1721289092928,-500.0,0.00024383,2]
[332539079,1721289092937,-621.32,0.00024383,2]
[332539080,1721289092947,-500.0,0.00024383,2]
[332539081,1721289092956,-986.48,0.00024383,2]
[332539082,1721289092970,-589.39,0.00024383,2]
[332539083,1721289092979,-500.0,0.00024383,2]
[332539084,1721289092989,-733.2,0.00024657,2]
[332539085,1721289092998,-500.0,0.00024657,2]
[332539086,1721289093009,-500.0,0.00024657,2]
[332539087,1721289093018,-500.0,0.00024657,2]
[332539088,1721289093028,-500.0,0.00024657,2]
[332539089,1721289093037,-532.26,0.00024657,2]
[332539090,1721289093048,-500.0,0.00024657,2]
[332539091,1721289093058,-500.0,0.00024657,2]
[332539092,1721289093067,-513.28,0.00024657,2]
[332539093,1721289093076,-500.0,0.00024657,2]
[332539094,1721289093086,-500.0,0.00024657,2]
[332539095,1721289093095,-500.0,0.00024657,2]
[332539096,1721289093105,-500.0,0.00024657,2]
[332539097,1721289093114,-500.0,0.00024657,2]
[332539098,1721289093124,-500.0,0.00024657,2]
[332539099,1721289093133,-517.25331984,0.00024657,2]
[332539100,1721289093142,-677.24,0.00024657,2]
[332539101,1721289093218,-1022.24,0.00024657,2]
[332539102,1721289093228,-650.1,0.00024657,2]
[332539103,1721289093237,-507.79079947,0.00024657,2]
[332539104,1721289093246,-500.0,0.00024657,2]
[332539105,1721289093255,-500.0,0.00024657,2]
[332539106,1721289093265,-545.06,0.00024657,2]
[332539107,1721289093274,-641.77,0.00024657,2]
[332539108,1721289093284,-500.0,0.00024657,2]
[332539109,1721289093293,-500.0,0.00024657,2]
[332539110,1721289093303,-500.0,0.00024657,2]
[332539111,1721289093313,-840.54,0.00024657,2]
[332539112,1721289093322,-500.0,0.00024657,2]
[332539113,1721289093330,-2000.0,0.00024657,2]
[332539114,1721289093339,-2000.0,0.00024657,2]
[332539115,1721289093349,-2000.0,0.00024657,2]
[332539116,1721289093359,-2000.0,0.00024657,2]
[332539117,1721289093369,-2000.0,0.00024657,2]
[332539118,1721289093378,-2000.0,0.00024657,2]
[332539119,1721289093388,-2000.0,0.00024657,2]
[332539120,1721289093398,-2000.0,0.00024657,2]
[332539121,1721289093407,-2101.24591887,0.00024657,2]
[332539122,1721289093416,-793.34,0.00024657,12]
[332539123,1721289093426,-645.82,0.00024657,2]
[332539124,1721289093436,-500.0,0.00024657,2]
[332539125,1721289093445,-500.0,0.00024657,2]
[332539126,1721289093455,-500.0,0.00024657,2]
[332539127,1721289093464,-790.23,0.00024657,2]
[332539128,1721289093474,-508.76556903,0.00024657,2]
[332539129,1721289093483,-500.0,0.00024657,2]
[332539130,1721289093495,-500.0,0.00024657,2]
[332539131,1721289093504,-1093.27,0.00024657,2]
[332539132,1721289093513,-500.0,0.00024657,2]
[332539133,1721289093523,-500.0,0.00024657,2]
[332539134,1721289093532,-500.0,0.00024657,2]
[332539135,1721289093542,-701.25,0.00024657,2]
[332539136,1721289093551,-1052.53,0.00024657,2]
[332539137,1721289093561,-1419.28,0.00024657,2]
[332539138,1721289093570,-1149.05,0.00024657,2]
[332539139,1721289093580,-1999.69,0.00024657,2]
[332539140,1721289093589,-540.75,0.00024657,2]
[332539141,1721289093600,-1246.32,0.00024657,2]
[332539142,1721289093610,-500.0,0.00024657,2]
[332539143,1721289093620,-500.0,0.00024657,2]
[332539144,1721289093630,-730.94,0.00024657,2]
[332539145,1721289093640,-323.4806616,0.00024657,2]